[Event "14. Deizisauer Herbstopen 2019"]
[Site "Deizisau"]
[Date "2019.10.25"]
[Round "1.3"]
[White "Frolik, Erhard"]
[Black "Fruechel, Marcel"]
[Result "1-0"]
[ECO "C03"]
[WhiteElo "2317"]
[BlackElo "1895"]
[Annotator "RC"]
[PlyCount "37"]
[EventDate "2019.10.25"]
[EventType "swiss"]
[EventCountry "GER"]
[SourceTitle "playchess.com"]
[Source "ChessBase"]
[SourceQuality "1"]
[TimeControl "5400+30"]

1. e4 {[%emt 0:00:00]} e6 {[%emt 0:00:00]} 2. d4 {[%emt 0:00:00]} d5 {[%emt 0:00:00]} 3. Nd2 {[%emt 0:00:05]} dxe4 {[%emt 0:00:09]} 4. Nxe4 {[%emt 0:00:09]} Nf6 {[%emt 0:00:07]} 5. Nxf6+ {[%emt 0:00:13]} Qxf6 {[%emt 0:00:10]} 6. Nf3 {[%emt 0:00:11]} h6 {[%emt 0:00:24]} 7. Bd3 {[%emt 0:01:58]} Bd6 {[%emt 0:01:24]} 8. Qe2 {[%emt 0:04:22]} Bd7 {[%emt 0:04:23]} 9. Ne5 {[%emt 0:04:35]} Bxe5 {[%emt 0:03:37]} 10. dxe5 {[%emt 0:00:34]} Qe7 {[%emt 0:00:21]} 11. Qg4 {[%emt 0:08:17]} Qf8 {[%emt 0:01:49]} 12. Bd2 {[%emt 0:00:57]} a5 {[%emt 0:01:45]} 13. O-O-O {[%emt 0:03:31]} Nc6 {[%emt 0:01:58]} 14. Rhe1 {[%emt 0:11:03]} Nb4 {[%emt 0:02:48]} 15. Be4 {[%emt 0:01:15]} Ba4 {[%emt 0:16:43]} 16. a3 {[%emt 0:06:23]} h5 {[%emt 0:22:53]} 17. Qh4 {[%emt 0:02:27]} Qc5 {[%emt 0:02:55]} 18. axb4 {[%emt 0:00:57]} axb4 {[%emt 0:00:13]} 19. Bxb4 1-0

[Event "14. Deizisauer Herbstopen 2019"]
[Site "Deizisau"]
[Date "2019.10.25"]
[Round "1.5"]
[White "Gustain, Marc"]
[Black "Kilinc, Can"]
[Result "1-0"]
[ECO "C24"]
[WhiteElo "2179"]
[BlackElo "1825"]
[Annotator "RC"]
[PlyCount "95"]
[EventDate "2019.10.25"]
[EventType "swiss"]
[EventCountry "GER"]
[SourceTitle "playchess.com"]
[Source "ChessBase"]
[SourceQuality "1"]
[TimeControl "5400+30"]

1. e4 {[%emt 0:00:00]} e5 {[%emt 0:00:00]} 2. Bc4 {[%emt 0:00:00]} Nf6 {[%emt 0:00:43]} 3. d4 {[%emt 0:00:00]} exd4 {[%emt 0:00:55]} 4. Nf3 {[%emt 0:00:00]} Bb4+ {[%emt 0:00:34]} 5. c3 {[%emt 0:00:00]} dxc3 {[%emt 0:00:09]} 6. bxc3 {[%emt 0:00:01]} d5 {[%emt 0:00:43]} 7. exd5 {[%emt 0:07:27]} Bd6 {[%emt 0:01:09]} 8. O-O {[%emt 0:03:10]} O-O {[%emt 0:00:33]} 9. Bg5 {[%emt 0:00:33]} h6 {[%emt 0:05:05]} 10. Bh4 {[%emt 0:00:29]} Nbd7 {[%emt 0:07:33]} 11. Bb3 {[%emt 0:03:57]} g5 {[%emt 0:13:50]} 12. Bg3 {[%emt 0:01:00]} Bxg3 {[%emt 0:00:13]} 13. fxg3 {[%emt 0:01:20]} Nc5 {[%emt 0:03:01]} 14. c4 {[%emt 0:01:21]} Bg4 {[%emt 0:12:19]} 15. Nc3 {[%emt 0:03:00]} Bh5 {[%emt 0:10:27]} 16. Qd4 {[%emt 0:01:26]} Nfd7 {[%emt 0:01:29]} 17. Bc2 {[%emt 0:02:51]} Qf6 {[%emt 0:00:50]} 18. Qxf6 Nxf6 {[%emt 0:00:01]} 19. Nxg5 {[%emt 0:03:44]} Nfd7 {[%emt 0:04:47]} 20. Nf3 {[%emt 0:03:28]} Bg6 {[%emt 0:00:54]} 21. Bxg6 {[%emt 0:03:27]} fxg6 {[%emt 0:00:02]} 22. Nb5 {[%emt 0:01:11]} c6 {[%emt 0:07:00]} 23. dxc6 {[%emt 0:04:30]} bxc6 {[%emt 0:00:06]} 24. Nbd4 {[%emt 0:00:19]} Rf6 {[%emt 0:01:24]} 25. Rfe1 {[%emt 0:04:27]} Kf7 {[%emt 0:11:06]} 26. Ne5+ {[%emt 0:04:42]} Nxe5 {[%emt 0:00:41]} 27. Rxe5 {[%emt 0:00:03]} Nd7 {[%emt 0:00:12]} 28. Ra5 {[%emt 0:01:37]} c5 {[%emt 0:06:39]} 29. Nf3 {[%emt 0:03:26]} Rc6 {[%emt 0:02:30]} 30. Rd1 {[%emt 0:00:33]} Rc7 {[%emt 0:00:16]} 31. Rxd7+ {[%emt 0:01:10]} Rxd7 {[%emt 0:00:01]} 32. Ne5+ {[%emt 0:00:10]} Ke6 {[%emt 0:00:14]} 33. Nxd7 {[%emt 0:00:11]} Kxd7 {[%emt 0:00:01]} 34. Rxc5 {[%emt 0:00:33]} Rb8 {[%emt 0:00:24]} 35. Ra5 {[%emt 0:01:07]} Rb2 {[%emt 0:02:57]} 36. Rxa7+ {[%emt 0:00:20]} Ke6 {[%emt 0:00:17]} 37. Ra5 {[%emt 0:03:51]} Rc2 {[%emt 0:03:24]} 38. c5 {[%emt 0:00:54]} h5 {[%emt 0:03:19]} 39. h3 {[%emt 0:01:11]} Kd7 {[%emt 0:02:13]} 40. a4 {[%emt 0:00:56]} Kc7 {[%emt 0:01:19]} 41. Rb5 {[%emt 0:02:24]} Ra2 {[%emt 0:00:01]} 42. a5 {[%emt 0:00:28]} Kd7 {[%emt 0:00:49]} 43. Rb7+ {[%emt 0:00:30]} Kc8 {[%emt 0:00:42]} 44. Rg7 {[%emt 0:00:48]} Rxa5 {[%emt 0:00:11]} 45. Rxg6 {[%emt 0:00:29]} Rxc5 {[%emt 0:00:24]} 46. g4 {[%emt 0:00:08]} hxg4 {[%emt 0:00:32]} 47. Rxg4 {[%emt 0:00:07]} Kd7 {[%emt 0:00:23]} 48. Re4 {[%emt 0:00:02]} 1-0

[Event "14. Deizisauer Herbstopen 2019"]
[Site "Deizisau"]
[Date "2019.10.25"]
[Round "1.7"]
[White "Gheng, Dominik"]
[Black "Kobald, Jacqueline"]
[Result "1/2-1/2"]
[ECO "B20"]
[WhiteElo "2068"]
[BlackElo "1884"]
[Annotator "NA RC"]
[PlyCount "79"]
[EventDate "2019.10.25"]
[EventType "swiss"]
[EventCountry "GER"]
[SourceTitle "playchess.com"]
[Source "ChessBase"]
[SourceQuality "1"]
[TimeControl "5400+30"]

1. e4 {[%emt 0:00:00]} c5 {[%emt 0:00:00]} 2. c4 {[%emt 0:00:00]} Nc6 {[%emt 0:00:00]} 3. Nc3 {[%emt 0:00:00]} g6 {[%emt 0:00:26]} 4. g3 {[%emt 0:00:00]} Bg7 {[%emt 0:00:07]} 5. Bg2 {[%emt 0:00:05]} e6 {[%emt 0:00:54]} 6. Nge2 {[%emt 0:00:30]} Nge7 {[%emt 0:00:41]} 7. O-O {[%emt 0:00:53]} O-O {[%emt 0:00:24]} 8. a3 {[%emt 0:00:26]} d6 {[%emt 0:03:45]} 9. d3 {[%emt 0:01:15]} a6 {[%emt 0:02:32]} 10. Rb1 {[%emt 0:00:36]} Rb8 {[%emt 0:03:51]} 11. b4 {[%emt 0:01:29]} Nd4 {[%emt 0:06:09] A36: Symmetrical English vs ...g6: 4 Bg2 Bg7} 12. Be3 {[%emt 0:07:34]} Bd7 {[%emt 0:03:48]} 13. b5 $146 {[%emt 0:04:11]} ({Predecessor:} 13. Qd2 b5 14. Rfc1 Re8 15. Bg5 bxc4 16. dxc4 {0-1 (31) Stankovic,I (2216)-Damljanovic,B (2552) Belgrade 2014}) 13... Nxe2+ {[%emt 0:10:58]} 14. Nxe2 {[%emt 0:00:05]} axb5 {[%emt 0:00:24]} 15. cxb5 {[%emt 0:00:10]} Ra8 {[%emt 0:05:49]} 16. a4 {[%emt 0:02:44]} Qa5 {[%emt 0:04:37]} 17. e5 {[%emt 0:01:39]} Bxe5 {[%emt 0:02:06]} 18. Bxb7 {[%emt 0:00:26]} Ra7 {[%emt 0:06:30]} 19. Ba6 {[%emt 0:00:06]} Nd5 {[%emt 0:06:34]} 20. Bd2 {[%emt 0:05:51]} Nc3 {[%emt 0:08:25]} 21. Kh1 {[%emt 0:00:55]} Nxd1 {[%emt 0:05:35]} 22. Bxa5 {[%emt 0:00:09]} Nb2 {[%emt 0:00:24]} 23. d4 {[%emt 0:01:20]} Nc4 {[%emt 0:00:48]} 24. dxe5 {[%emt 0:00:59]} Nxa5 {[%emt 0:00:06]} 25. exd6 {[%emt 0:00:12]} Bc8 $2 {[%emt 0:04:48]} (25... Nc6 $1 $11) 26. Bxc8 {[%emt 0:14:03]} Rxc8 {[%emt 0:00:06]} 27. Nc3 {[%emt 0:12:51]} Nc4 {[%emt 0:01:53]} 28. Rfd1 {[%emt 0:01:05]} f5 {[%emt 0:04:45]} 29. b6 {[%emt 0:21:33]} Rb7 {[%emt 0:01:48]} 30. Rb5 {[%emt 0:11:51]} Rxb6 {[%emt 0:07:01]} 31. d7 {[%emt 0:00:12]} Rd8 {[%emt 0:00:13]} 32. Rxc5 {[%emt 0:00:22]} Nd6 {[%emt 0:03:53]} 33. Nb5 $16 {[%emt 0:06:16]} (33. a5 $18 Ra6 34. Na4 Rxd7 35. Nb6) 33... Rxd7 {[%emt 0:04:15]} 34. Rc2 {[%emt 0:00:26]} Kf7 {[%emt 0:01:10]} 35. Rcd2 {[%emt 0:00:13]} Ke7 {[%emt 0:00:11]} 36. f4 {[%emt 0:00:10]} Rd8 {[%emt 0:01:51]} 37. h4 {[%emt 0:01:01]} Nb7 {[%emt 0:00:24]} 38. Kg2 {[%emt 0:02:17]} Rxd2+ {[%emt 0:00:16]} 39. Rxd2 {[%emt 0:00:03]} Nc5 {[%emt 0:00:37]} 40. Rd4 {[%emt 0:00:46]} 1/2-1/2

[Event "14. Deizisauer Herbstopen 2019"]
[Site "Deizisau"]
[Date "2019.10.25"]
[Round "1.8"]
[White "Gheng, Christian"]
[Black "Gabriel, Josef"]
[Result "1-0"]
[ECO "B06"]
[WhiteElo "1868"]
[BlackElo "2089"]
[Annotator "NA RC"]
[PlyCount "29"]
[EventDate "2019.10.25"]
[EventType "swiss"]
[EventCountry "GER"]
[SourceTitle "playchess.com"]
[Source "ChessBase"]
[SourceQuality "1"]
[TimeControl "5400+30"]

1. e4 {[%emt 0:00:00]} g6 {[%emt 0:00:00]} 2. d4 {[%emt 0:00:00]} Bg7 {[%emt 0:00:00]} 3. Bc4 {[%emt 0:00:22]} c5 {[%emt 0:01:38]} 4. c3 {[%emt 0:02:27]} Nc6 {[%emt 0:00:14]} 5. Nf3 {[%emt 0:00:23]} cxd4 {[%emt 0:00:30]} 6. cxd4 {[%emt 0:00:27]} Qb6 {[%emt 0:01:41]} 7. Nc3 {[%emt 0:10:40]} Nxd4 {[%emt 0:02:06]} 8. Nd5 {[%emt 0:02:15]} Qc5 {[%emt 0:03:57]} 9. Be3 {[%emt 0:01:54]} Qa5+ {[%emt 0:27:10]} ({Stronger than} 9... Nxf3+ 10. gxf3 Qa5+ 11. Bd2 $14) (9... e6 $142) 10. b4 {[%emt 0:10:25]} Nxf3+ {[%emt 0:05:40]} 11. Qxf3 {[%emt 0:00:05]} ({And not} 11. gxf3 Qd8 $11) 11... Qa3 {[%emt 0:00:35]} 12. O-O $18 {[%emt 0:14:12]} Bxa1 {[%emt 0:01:12]} 13. Nc7+ {[%emt 0:01:36]} Kd8 {[%emt 0:00:25]} 14. Nxa8 {[%emt 0:00:42]} Be5 {[%emt 0:02:32]} 15. Bb6+ {[%emt 0:00:10]} 1-0

[Event "14. Deizisauer Herbstopen 2019"]
[Site "Deizisau"]
[Date "2019.10.25"]
[Round "1.9"]
[White "Reimche, Vadim"]
[Black "Leser, Stefan"]
[Result "1-0"]
[ECO "D59"]
[WhiteElo "2080"]
[BlackElo "1846"]
[Annotator "NA RC"]
[PlyCount "57"]
[EventDate "2019.10.25"]
[EventType "swiss"]
[EventCountry "GER"]
[SourceTitle "playchess.com"]
[Source "ChessBase"]
[SourceQuality "1"]
[TimeControl "5400+30"]

{[%evp 21,57,7,32767,32767,32767,32767,32767,5,32767,20,41,10,60,25,132,116,130,108,122,127,145,140,220,210,32767,32767,32767,32767,32767,32767,252,235,356,277,299,324,337,348]} 1. d4 {[%emt 0:00:00]} Nf6 {[%emt 0:00:00]} 2. c4 {[%emt 0:00:00]} e6 {[%emt 0:00:00]} 3. Nc3 {[%emt 0:00:00]} d5 {[%emt 0:00:29]} 4. Bg5 {[%emt 0:00:09]} Be7 {[%emt 0:00:38]} 5. e3 {[%emt 0:00:10]} h6 {[%emt 0:00:07]} 6. Bh4 {[%emt 0:00:05]} O-O {[%emt 0:00:10]} 7. Nf3 {[%emt 0:00:08]} b6 {[%emt 0:01:46]} 8. cxd5 {[%emt 0:00:10]} Nxd5 {[%emt 0:00:11]} 9. Nxd5 {[%emt 0:00:28]} exd5 {[%emt 0:02:07]} 10. Bxe7 {[%emt 0:00:55]} Qxe7 {[%emt 0:00:21]} 11. Rc1 {[%emt 0:04:20]} Be6 {[%emt 0:02:12] D59: Queen's Gambit Declined: Tartakower Defence: Main line (8 cxd5 Nxd5)} 12. Qc2 {[%emt 0:00:23]} (12. b3 c5 13. Bb5 a6 14. Bd3 Nd7 15. O-O a5 16. h3 Rfc8 17. a4 Nf6 18. Qe2 Bd7 19. Ne5 cxd4 20. exd4 {½-½ (39) Eljanov,P (2765)-Topalov,V (2754) Stavanger 2016}) 12... Qb4+ $146 {[%emt 0:05:28]} ({Predecessor:} 12... Rc8 13. Bd3 c5 14. Qd2 Nd7 15. O-O Bg4 16. Ne1 a5 17. f3 Be6 18. Bb5 Nf6 19. Nc2 {1-0 (47) Lajthajm,B (2484)-Benkovic,P (2456) Trebinje 2009}) 13. Qc3 {[%emt 0:00:56]} Qxc3+ {[%emt 0:02:51]} 14. Rxc3 {[%emt 0:03:27]} Rc8 {[%emt 0:03:30]} 15. b4 {[%emt 0:09:32]} a5 {[%emt 0:04:17]} 16. b5 $1 {[%emt 0:00:23]} c6 {[%emt 0:04:43]} (16... c5 $11) 17. Ne5 {[%emt 0:04:06]} cxb5 {[%emt 0:03:17]} (17... c5 $11 {keeps the balance.}) 18. Rxc8+ {[%emt 0:00:14]} Bxc8 {[%emt 0:00:13]} 19. Bxb5 {[%emt 0:00:13]} Ba6 {[%emt 0:05:57]} 20. Bxa6 {[%emt 0:05:49]} Nxa6 {[%emt 0:00:54] [#]} 21. Kd2 $1 {[%emt 0:00:20]} Rc8 {[%emt 0:03:27]} (21... b5 $16) 22. Rb1 {[%emt 0:00:57]} f6 {[%emt 0:04:13]} 23. Nd7 {[%emt 0:04:14]} Kf7 {[%emt 0:02:45]} 24. Nxb6 {[%emt 0:05:14]} Rb8 {[%emt 0:02:03]} 25. Rb2 {[%emt 0:03:20]} Rb7 {[%emt 0:08:44]} (25... f5 $142 26. Kc3 Ke6) 26. Na4 {[%emt 0:00:48]} Rc7 {[%emt 0:01:23]} (26... Rxb2+ $142 27. Nxb2 Nb8) 27. a3 {[%emt 0:01:42]} Rc6 {[%emt 0:04:27]} 28. Rb5 {[%emt 0:01:10]} Ke6 {[%emt 0:01:02]} 29. Rxa5 $18 {[%emt 0:01:09]} 1-0

[Event "14. Deizisauer Herbstopen 2019"]
[Site "Deizisau"]
[Date "2019.10.26"]
[Round "2.1"]
[White "Lehmann, Stefan"]
[Black "Dgebuadze, Alexandre"]
[Result "0-1"]
[ECO "B24"]
[WhiteElo "1999"]
[BlackElo "2472"]
[Annotator "ChessBase"]
[PlyCount "66"]
[EventDate "2019.10.25"]
[EventType "swiss"]
[EventCountry "GER"]
[SourceTitle "playchess.com"]
[Source "ChessBase"]
[SourceQuality "1"]
[TimeControl "5400+30"]

1. e4 {[%emt 0:00:00]} c5 {[%emt 0:00:00]} 2. Nc3 {[%emt 0:00:00]} Nc6 {[%emt 0:00:47]} 3. Nf3 {[%emt 0:00:00]} g6 {[%emt 0:02:24]} 4. Bb5 {[%emt 0:00:50]} Bg7 {[%emt 0:00:18]} 5. O-O {[%emt 0:00:18]} d6 {[%emt 0:02:27]} 6. Re1 {[%emt 0:06:19]} e5 {[%emt 0:00:23]} 7. d3 {[%emt 0:01:19]} Nge7 {[%emt 0:00:13]} 8. Nd5 {[%emt 0:07:01]} O-O {[%emt 0:02:16]} 9. Bg5 {[%emt 0:03:38]} f6 {[%emt 0:00:10]} 10. Nxe7+ {[%emt 0:00:15]} Nxe7 {[%emt 0:01:03]} 11. Be3 {[%emt 0:01:15]} Kh8 {[%emt 0:01:03]} 12. Bc4 {[%emt 0:03:23]} b6 {[%emt 0:05:13]} 13. c3 Bb7 14. Qd2 {[%emt 0:18:50]} d5 {[%emt 0:08:59]} 15. exd5 {[%emt 0:00:14]} Nxd5 {[%emt 0:00:50]} 16. Rad1 {[%emt 0:07:23]} Qc7 {[%emt 0:03:59]} 17. Qe2 {[%emt 0:05:25]} Rad8 {[%emt 0:07:11]} 18. a4 {[%emt 0:09:02]} Bc6 {[%emt 0:10:15]} 19. Bb5 {[%emt 0:02:36]} Ba8 {[%emt 0:06:05]} 20. h4 {[%emt 0:03:11]} h6 {[%emt 0:07:02]} 21. Bc1 {[%emt 0:04:58]} Ne7 {[%emt 0:00:48]} 22. d4 {[%emt 0:07:42]} e4 {[%emt 0:03:51]} 23. Nd2 {[%emt 0:00:52]} f5 {[%emt 0:01:16]} 24. dxc5 {[%emt 0:00:26]} bxc5 {[%emt 0:02:47]} 25. f3 {[%emt 0:00:32]} Nd5 {[%emt 0:13:04]} 26. fxe4 {[%emt 0:02:01]} Nf4 {[%emt 0:00:06]} 27. Qe3 {[%emt 0:01:58]} fxe4 {[%emt 0:02:14]} 28. Nxe4 {[%emt 0:00:58]} Rxd1 {[%emt 0:00:17]} 29. Rxd1 {[%emt 0:00:17]} Qe7 {[%emt 0:01:51]} 30. Nxc5 {[%emt 0:01:49]} Qxh4 {[%emt 0:00:48]} 31. Bf1 {[%emt 0:02:25]} Nxg2 {[%emt 0:02:14]} 32. Qe2 {[%emt 0:06:08]} Ne3 {[%emt 0:01:37]} 33. Qh2 {[%emt 0:00:45]} Qg4+ {[%emt 0:00:17]} 0-1

[Event "14. Deizisauer Herbstopen 2019"]
[Site "Deizisau"]
[Date "2019.10.26"]
[Round "2.2"]
[White "Krassowizkij, Jaroslaw"]
[Black "Chassard, Cedric"]
[Result "1-0"]
[ECO "A14"]
[WhiteElo "2436"]
[BlackElo "1929"]
[Annotator "ChessBase"]
[PlyCount "97"]
[EventDate "2019.10.25"]
[EventType "swiss"]
[EventCountry "GER"]
[SourceTitle "playchess.com"]
[Source "ChessBase"]
[SourceQuality "1"]
[TimeControl "5400+30"]

1. c4 {[%emt 0:00:00]} Nf6 {[%emt 0:00:00]} 2. g3 {[%emt 0:00:00]} e6 {[%emt 0:00:00]} 3. Bg2 {[%emt 0:00:28]} d5 {[%emt 0:00:04]} 4. Nf3 {[%emt 0:00:06]} Be7 {[%emt 0:00:33]} 5. O-O {[%emt 0:00:10]} O-O {[%emt 0:00:07]} 6. d4 {[%emt 0:00:39]} c5 {[%emt 0:00:48]} 7. cxd5 {[%emt 0:00:26]} Nxd5 {[%emt 0:00:14]} 8. e4 {[%emt 0:05:20]} Nf6 {[%emt 0:01:29]} 9. Nc3 {[%emt 0:00:29]} cxd4 {[%emt 0:04:50]} 10. Nxd4 {[%emt 0:00:06]} e5 {[%emt 0:00:44]} 11. Nb3 {[%emt 0:02:22]} Qxd1 {[%emt 0:09:04]} 12. Rxd1 {[%emt 0:00:06]} Rd8 {[%emt 0:01:45]} 13. Be3 {[%emt 0:02:17]} Bg4 {[%emt 0:03:25]} 14. Rdc1 {[%emt 0:06:30]} Nc6 {[%emt 0:01:23]} 15. Nd5 {[%emt 0:00:09]} Kf8 {[%emt 0:10:09]} 16. h3 {[%emt 0:03:32]} Be6 {[%emt 0:02:40]} 17. Nc5 {[%emt 0:00:05]} Bxc5 {[%emt 0:09:30]} 18. Bxc5+ {[%emt 0:00:19]} Kg8 {[%emt 0:00:16]} 19. Nc7 {[%emt 0:02:33]} Rac8 {[%emt 0:00:30]} 20. Nxe6 {[%emt 0:00:09]} fxe6 {[%emt 0:00:02]} 21. Be3 {[%emt 0:00:40]} Nd4 {[%emt 0:04:35]} 22. Rxc8 {[%emt 0:04:54]} Rxc8 {[%emt 0:00:27]} 23. Rd1 {[%emt 0:02:44]} Rc2 {[%emt 0:04:31]} 24. Bxd4 {[%emt 0:03:34]} exd4 {[%emt 0:00:43]} 25. Rxd4 {[%emt 0:00:04]} Rxb2 {[%emt 0:00:17]} 26. e5 {[%emt 0:00:04]} Ne8 {[%emt 0:05:41]} 27. a4 {[%emt 0:08:39]} Kf8 {[%emt 0:05:29]} 28. Rd7 {[%emt 0:00:18]} Rb4 {[%emt 0:00:36]} 29. Rxb7 {[%emt 0:02:20]} Rxa4 {[%emt 0:00:52]} 30. Bc6 {[%emt 0:00:12]} Rc4 {[%emt 0:03:40]} 31. Bxe8 {[%emt 0:00:10]} Kxe8 {[%emt 0:00:10]} 32. Rxg7 {[%emt 0:00:07]} a5 {[%emt 0:01:41]} 33. Rxh7 {[%emt 0:00:14]} Re4 {[%emt 0:00:09]} 34. f4 {[%emt 0:00:44]} Re2 {[%emt 0:00:40]} 35. Ra7 {[%emt 0:00:29]} Ra2 {[%emt 0:00:32]} 36. h4 {[%emt 0:03:30]} Kf8 {[%emt 0:01:46]} 37. h5 {[%emt 0:00:21]} Kg8 {[%emt 0:01:58]} 38. Re7 {[%emt 0:02:39]} a4 {[%emt 0:01:00]} 39. Rxe6 {[%emt 0:00:11]} a3 {[%emt 0:00:28]} 40. Ra6 {[%emt 0:00:06]} Kg7 {[%emt 0:00:31]} 41. g4 {[%emt 0:00:24]} Ra1+ {[%emt 0:01:00]} 42. Kg2 {[%emt 0:00:09]} Ra2+ {[%emt 0:00:08]} 43. Kg3 {[%emt 0:00:08]} Ra1 {[%emt 0:00:05]} 44. Kh4 {[%emt 0:00:25]} a2 {[%emt 0:00:39]} 45. Kg5 {[%emt 0:00:05]} Kf7 {[%emt 0:00:22]} 46. f5 {[%emt 0:00:06]} Kg7 {[%emt 0:00:09]} 47. Ra7+ {[%emt 0:00:05]} Kf8 {[%emt 0:00:28]} 48. Kf6 {[%emt 0:00:11]} Ke8 {[%emt 0:00:14]} 49. e6 {[%emt 0:00:07]} 1-0

[Event "14. Deizisauer Herbstopen 2019"]
[Site "Deizisau"]
[Date "2019.10.26"]
[Round "2.3"]
[White "Scharrer, Udo"]
[Black "Frolik, Erhard"]
[Result "0-1"]
[ECO "D12"]
[WhiteElo "2012"]
[BlackElo "2317"]
[Annotator "ChessBase"]
[PlyCount "68"]
[EventDate "2019.10.25"]
[EventType "swiss"]
[EventCountry "GER"]
[SourceTitle "playchess.com"]
[Source "ChessBase"]
[SourceQuality "1"]
[TimeControl "5400+30"]

1. d4 {[%emt 0:00:00]} Nf6 {[%emt 0:00:00]} 2. c4 {[%emt 0:00:00]} c6 {[%emt 0:00:06]} 3. Nf3 {[%emt 0:00:13]} d5 {[%emt 0:00:06]} 4. e3 {[%emt 0:00:16]} Bf5 {[%emt 0:01:47]} 5. Nc3 {[%emt 0:00:45]} a6 {[%emt 0:00:32]} 6. Qb3 {[%emt 0:04:16]} b5 {[%emt 0:01:05]} 7. cxd5 {[%emt 0:01:05]} cxd5 {[%emt 0:04:58]} 8. a4 {[%emt 0:01:20]} b4 {[%emt 0:04:50]} 9. Qxb4 {[%emt 0:04:47]} Nc6 {[%emt 0:01:15]} 10. Qb3 {[%emt 0:03:44]} Rb8 {[%emt 0:00:39]} 11. Qd1 {[%emt 0:06:09]} Nb4 {[%emt 0:00:14]} 12. e4 {[%emt 0:05:46]} Nxe4 {[%emt 0:00:19]} 13. Bf4 {[%emt 0:02:20]} Nxc3 {[%emt 0:01:04]} 14. bxc3 {[%emt 0:00:54]} Nc2+ {[%emt 0:00:25]} 15. Kd2 {[%emt 0:00:18]} e5 {[%emt 0:07:22]} 16. Bxe5 {[%emt 0:04:47]} Bd6 {[%emt 0:01:38]} 17. Rb1 {[%emt 0:09:00]} Rxb1 {[%emt 0:07:06]} 18. Qxb1 {[%emt 0:00:10]} Nxd4 {[%emt 0:10:57]} 19. Bd3 {[%emt 0:02:04]} Nxf3+ {[%emt 0:01:45]} 20. gxf3 {[%emt 0:00:10]} Bxd3 {[%emt 0:01:50]} 21. Qxd3 {[%emt 0:00:44]} Bxe5 {[%emt 0:00:46]} 22. Re1 {[%emt 0:00:33]} O-O {[%emt 0:14:33]} 23. Rxe5 {[%emt 0:00:23]} Qh4 {[%emt 0:02:01]} 24. Ke3 {[%emt 0:04:16]} Qxa4 {[%emt 0:01:43]} 25. Qxd5 {[%emt 0:03:13]} h6 {[%emt 0:02:29]} 26. Re4 {[%emt 0:09:06]} Qa1 {[%emt 0:02:30]} 27. c4 {[%emt 0:03:04]} Qe1+ {[%emt 0:05:32]} 28. Kd3 {[%emt 0:00:29]} Qxf2 {[%emt 0:00:21]} 29. Re2 {[%emt 0:00:22]} Qh4 {[%emt 0:00:45]} 30. Kc3 {[%emt 0:01:40]} Rd8 {[%emt 0:01:13]} 31. Qe5 {[%emt 0:01:03]} Rc8 {[%emt 0:03:53]} 32. Qd4 {[%emt 0:03:16]} Qh5 {[%emt 0:03:16]} 33. Qg4 {[%emt 0:01:21]} Qa5+ {[%emt 0:00:16]} 34. Kd3 {[%emt 0:01:03]} Rd8+ {[%emt 0:01:31] Kd4} 0-1

[Event "14. Deizisauer Herbstopen 2019"]
[Site "Deizisau"]
[Date "2019.10.26"]
[Round "2.4"]
[White "Heck, Nils"]
[Black "Gustain, Marc"]
[Result "0-1"]
[ECO "D20"]
[WhiteElo "1999"]
[BlackElo "2179"]
[Annotator "ChessBase"]
[PlyCount "94"]
[EventDate "2019.10.25"]
[EventType "swiss"]
[EventCountry "GER"]
[SourceTitle "playchess.com"]
[Source "ChessBase"]
[SourceQuality "1"]
[TimeControl "5400+30"]

1. d4 {[%emt 0:00:00]} d5 {[%emt 0:00:00]} 2. c4 {[%emt 0:00:00]} dxc4 {[%emt 0:00:00]} 3. e4 {[%emt 0:00:00]} Nc6 {[%emt 0:00:26]} 4. d5 {[%emt 0:00:19]} Ne5 {[%emt 0:00:16]} 5. Bf4 {[%emt 0:00:59]} Ng6 {[%emt 0:01:06]} 6. Be3 {[%emt 0:01:27]} e6 {[%emt 0:01:26]} 7. Bxc4 {[%emt 0:03:23]} Nf6 {[%emt 0:06:02]} 8. Nc3 {[%emt 0:07:00]} exd5 {[%emt 0:01:26]} 9. Bxd5 {[%emt 0:18:36]} Bd6 {[%emt 0:06:17]} 10. Nf3 {[%emt 0:17:39]} O-O {[%emt 0:01:14]} 11. Qd4 {[%emt 0:24:14]} Nxd5 {[%emt 0:04:30]} 12. exd5 {[%emt 0:01:26]} Re8 {[%emt 0:04:12]} 13. O-O {[%emt 0:01:22]} Ne5 {[%emt 0:03:34]} 14. Nxe5 {[%emt 0:01:13]} Bxe5 {[%emt 0:00:41]} 15. Qc4 {[%emt 0:01:18]} a6 {[%emt 0:03:01]} 16. a4 {[%emt 0:01:41]} Bf5 {[%emt 0:03:46]} 17. Rfe1 {[%emt 0:08:19]} Qd6 {[%emt 0:04:56]} 18. g3 {[%emt 0:01:54]} Qf6 {[%emt 0:10:32]} 19. Bf4 {[%emt 0:01:28]} Bd6 {[%emt 0:05:15]} 20. Bxd6 {[%emt 0:01:25]} Qxd6 {[%emt 0:00:45]} 21. Rad1 {[%emt 0:01:02]} Rad8 {[%emt 0:02:08]} 22. b4 {[%emt 0:01:20]} h6 {[%emt 0:01:06]} 23. a5 {[%emt 0:00:40]} Qd7 {[%emt 0:03:06]} 24. Qc5 {[%emt 0:03:14]} Bg4 {[%emt 0:01:00]} 25. Rc1 {[%emt 0:00:31]} Bf3 {[%emt 0:00:47]} 26. Re3 {[%emt 0:01:28]} Rxe3 {[%emt 0:06:02]} 27. fxe3 {[%emt 0:00:15]} Re8 {[%emt 0:01:34]} 28. e4 {[%emt 0:00:46]} Bxe4 {[%emt 0:04:26]} 29. Re1 {[%emt 0:00:15]} f5 {[%emt 0:06:41]} 30. Qc4 {[%emt 0:00:17]} Qd6 {[%emt 0:02:29]} 31. Nxe4 {[%emt 0:00:18]} fxe4 {[%emt 0:00:02]} 32. Rxe4 {[%emt 0:00:14]} Rd8 {[%emt 0:00:09]} 33. Rd4 {[%emt 0:00:44]} Kh8 {[%emt 0:01:02]} 34. b5 {[%emt 0:01:06]} axb5 {[%emt 0:01:13]} 35. Qxb5 {[%emt 0:00:05]} Qe5 {[%emt 0:00:36]} 36. Qd3 {[%emt 0:01:10]} Qe1+ {[%emt 0:00:33]} 37. Kg2 {[%emt 0:00:27]} Qxa5 {[%emt 0:00:03]} 38. d6 {[%emt 0:00:49]} Qa2+ {[%emt 0:01:13]} 39. Kf3 {[%emt 0:00:10]} Qf7+ {[%emt 0:02:02]} 40. Kg2 {[%emt 0:00:18]} Rxd6 {[%emt 0:02:14]} 41. Rxd6 {[%emt 0:00:09]} cxd6 {[%emt 0:00:05]} 42. Qxd6 {[%emt 0:00:07]} Qa2+ {[%emt 0:00:23]} 43. Kf3 {[%emt 0:00:35]} Qb1 {[%emt 0:00:39]} 44. Ke3 {[%emt 0:00:57]} b5 {[%emt 0:00:21]} 45. h3 {[%emt 0:01:01]} b4 {[%emt 0:00:21]} 46. g4 {[%emt 0:00:27]} b3 {[%emt 0:00:48]} 47. h4 {[%emt 0:00:47]} b2 {[%emt 0:00:36]} 0-1